Cogmind - Beta 15 @@@ ROGUE MODE // 2025.06.22 @ 18:03:28 Player: Mogwok Wargfriend Result: Core destroyed Performance ------------- Evolutions (7) 3500 Regions Visited (16) 3200 Robots Destroyed (73) 365 Value Destroyed (1905) 1905 Prototype IDs (47) 940 Alien Tech Used (2) 400 Bonus (1400) 1400 TOTAL SCORE: 11710 Bonus ------- Registered with UFD 300 Met Data Miner 300 Met Zhirov 300 Scanned by Researcher 500 Cogmind --------- Core Integrity 0/1300 Matter 288/300 Energy 100/100 System Corruption 31% Temperature Cool (0) Movement Core (50) Location -3/Testing Parts ------- > --- POWER (1) -------- (None) > --- PROPULSION (7) --- (None) > --- UTILITY (10) ----- Enhanced Optical Array Advanced Signal Interpreter Advanced Target Analyzer System Shield > --- WEAPON (3) ------- (None) > --- INVENTORY (5) ---- 2N-1CE's Frost Array Improved Recalibrator Peak State ------------ > --- POWER ------------ Micro Antimatter Reactor > --- PROPULSION ------- VTOL Module Cesium-ion Thruster Nuclear Pulse Thruster Cooled Nuclear Pulse Thruster Impulse Thruster Diametric Drive Q-thruster > --- UTILITY ---------- Advanced Heat Sink Enhanced Optical Array Improved Sensor Array Advanced Signal Interpreter ECM Suite Advanced Reaction Control System Makeshift Hacking Suite Advanced Hacking Suite System Shield Long-range Tractor Beam > --- WEAPON ----------- Heavy Mace Shock Maul Spear > --- INVENTORY -------- Light Fission Core Neutrino Core Cooled Nuclear Pulse Thruster Cooled Nuclear Pulse Thruster Advanced Plasma Rifle [Rating: 109] Favorites ----------- Power Ion Engine Engine Ion Engine Power Core Nuclear Core Reactor Micro Antimatter Reactor Propulsion Light Treads Treads Light Treads Leg Armored Leg Wheel Wheel Hover Unit Improved Antigrav System Flight Unit VTOL Module Utility Small Storage Unit Device Advanced Heat Sink Storage Small Storage Unit Processor Enhanced Optical Array Hackware System Shield Protection Medium Armor Plating Weapon Battle Cannon Energy Gun Medium Laser Ballistic Gun Battle Rifle Ballistic Cannon Battle Cannon Launcher Grenade Launcher Impact Weapon Heavy Mace Piercing Weapon Spear Build | -11 -10 -10 -9 -6 -6 -6 -6 -5 -5 -4 -4 -4 -4 -3 -3 -3 ------- Run | Yrd Mat Sub Scr Fac Low Low Dat Pro Fac Fac Upp Upp Zhi Pro Res Tes Slots Evolved 14 | . . . . 8 . . . . 2 2 . . . . 2 . Power . | . . . . . . . . . . . . . . . . . Propulsion 5 | . . . . 2 . . . . 1 1 . . . . 1 . Utility 8 | . . . . 5 . . . . 1 1 . . . . 1 . Weapon 1 | . . . . 1 . . . . . . . . . . . . Parts Attached 119 | 8 9 12 4 23 . 11 . 1 13 9 . 1 3 4 3 18 Power 11 | 1 . . 2 1 . 2 . . 2 . . . . . 1 2 Engine 5 | 1 . . 1 1 . 1 . . 1 . . . . . . . Core 4 | . . . 1 . . 1 . . 1 . . . . . . 1 Reactor 2 | . . . . . . . . . . . . . . . 1 1 Propulsion 36 | 3 2 5 . 5 . 4 . . 3 4 . . 2 1 1 6 Treads 3 | . . 3 . . . . . . . . . . . . . . Leg 8 | . 1 . . 2 . 2 . . 1 . . . . . . 2 Wheel 7 | 3 1 2 . . . 1 . . . . . . . . . . Hover 5 | . . . . 1 . . . . 1 1 . . . . . 2 Flight 13 | . . . . 2 . 1 . . 1 3 . . 2 1 1 2 Utility 44 | 2 3 . 2 12 . 2 . . 5 4 . 1 1 2 . 10 Device 20 | 1 1 . 1 2 . 2 . . 5 2 . . . 2 . 4 Storage 5 | 1 . . . . . . . . . . . . . . . 4 Processor 8 | . . . . 6 . . . . . 1 . . . . . 1 Hackware 6 | . . . . 2 . . . . . 1 . 1 1 . . 1 Protection 5 | . 2 . 1 2 . . . . . . . . . . . . Artifact . | . . . . . . . . . . . . . . . . . Weapon 28 | 2 4 7 . 5 . 3 . 1 3 1 . . . 1 1 . Energy Gun 10 | 1 2 1 . 2 . 1 . . 2 1 . . . . . . Energy Cannon . | . . . . . . . . . . . . . . . . . Ballistic Gun 11 | 1 1 3 . 3 . 2 . . 1 . . . . . . . Ballistic Cannon 1 | . . 1 . . . . . . . . . . . . . . Launcher 2 | . . 2 . . . . . . . . . . . . . . Special Weapon . | . . . . . . . . . . . . . . . . . Impact Weapon 3 | . 1 . . . . . . 1 . . . . . . 1 . Slashing Weapon . | . . . . . . . . . . . . . . . . . Piercing Weapon 1 | . . . . . . . . . . . . . . 1 . . Special Melee Weapon . | . . . . . . . . . . . . . . . . . Unidentified Prototypes 14 | . . . . 1 . . . . . 2 . . 2 2 1 6 Parts Lost 61 | . 1 7 . 13 1 1 . 2 5 . . . . . 6 25 Power 7 | . . . . 1 . . . 1 1 . . . . . . 4 Propulsion 22 | . . 4 . 3 1 . . . . . . . . . 4 10 Utility 15 | . 1 . . 3 . 1 . . 1 . . . . . 2 7 Weapon 17 | . . 3 . 6 . . . 1 3 . . . . . . 4 Highest Loss Streak 15 | . 1 6 . 6 1 1 . 1 4 . . . . . 6 15 To Critical Strikes 1 | . . 1 . . . . . . . . . . . . . . Average Backups 6 | 6 7 7 8 5 5 4 5 4 4 4 4 5 5 5 5 3 Power 1 | . 1 1 1 . 1 1 1 1 . 1 1 1 1 1 1 . Propulsion . | 4 2 . . . . 1 2 2 2 1 1 1 1 2 2 . Utility 1 | . . 1 2 2 3 1 1 1 . . 1 2 1 1 . . Weapon 2 | 1 3 4 4 2 1 . 1 . 1 1 1 1 1 1 1 1 Tool/Special . | . . . . . . . . . . . . . . . . . Unused Backups 14 | 1 4 2 2 1 . 1 . . . 1 . . 2 . . . Power 3 | . 1 . 1 . . 1 . . . . . . . . . . Propulsion 3 | 1 1 . . . . . . . . . . . 1 . . . Utility 3 | . . 1 1 . . . . . . . . . 1 . . . Weapon 5 | . 2 1 . 1 . . . . . 1 . . . . . . Tool/Special . | . . . . . . . . . . . . . . . . . Average Slot Usage (%) 87 | . 99 98 99 63 65 75 83 81 68 71 80 80 80 87 99 65 Engine 5 | . 14 14 2 3 . 3 5 5 4 . . . . . . . Core 3 | . . . 11 . . 3 5 3 . 4 4 4 4 5 . 1 Treads 10 | . . 16 28 8 . . . . . . . . . . . . Leg 3 | . 8 2 . 5 6 9 11 11 7 . . . . . . 1 Wheel 3 | . 19 8 . . . 3 5 5 3 . . . . . . . Hover 1 | . . . . . 6 1 . . 1 8 9 9 4 . . 4 Flight 5 | . . . . 2 5 . . . 3 14 19 19 21 29 32 11 Device 8 | . 6 14 . 5 . 4 11 11 14 23 23 23 21 19 22 6 Storage 7 | . 14 14 14 4 . . . . . . . . . . . 1 Processor 7 | . . . . 10 40 30 22 22 20 14 14 12 9 10 9 10 Hackware 2 | . . . . 1 6 1 . . . 2 4 5 11 15 14 14 Protection 5 | . 7 . 13 4 . 2 5 5 2 . . . . . . . Energy Gun 3 | . 14 4 . . . 7 11 10 5 . . . . . . . Ballistic Gun 8 | . 13 13 14 5 . 3 5 5 3 . . . . . . . Ballistic Cannon 5 | . . 6 14 3 . . . . . . . . . . . . Impact Weapon 1 | . . . . . . . . . . 1 4 4 4 5 8 6 Peak Build Rating 109 | 7 10 14 19 61 54 77 77 77 89 94 95 95 93 91 109 102 Average Rating 41 | 6 8 12 14 31 53 68 77 76 74 85 94 93 87 86 108 78 On Entrance 57 | . 7 9 13 14 54 52 77 77 75 69 94 95 92 83 90 83 Naked Turns . | . . . . . . . . . . . . . . . . . Heaviest Build 42 | 13 21 18 24 32 . 42 42 42 42 19 19 19 19 22 24 23 Greatest Support 58 | 26 20 40 40 40 20 28 28 28 28 24 24 24 24 30 32 58 Greatest Overweight (x) 5 | 2 2 5 . 1 . 1 1 1 1 1 . . . . . 1 Average Overweight (x) . | . . . . . . . 1 1 . . . . . . . . Largest Inventory Capacity 8 | 8 8 8 8 8 5 5 5 5 5 5 5 5 5 5 5 5 Average Capacity 6 | 7 8 8 8 7 5 5 5 5 5 5 5 5 5 5 5 5 Most Carried 8 | 8 8 8 8 7 5 5 5 5 5 5 5 5 5 5 5 5 Average Carried 6 | 6 7 7 7 5 5 4 5 4 4 4 4 5 4 5 5 3 Final Capacity 8 | 8 8 8 8 5 5 5 5 5 5 5 5 5 5 5 5 5 Final Carried 8 | 8 8 8 8 5 5 5 5 5 5 4 5 5 5 5 5 2 Class Distribution -------------------- 35% | Mutant 30% | Derelict-Mutant 9% | Derelict-Gunner 8% | Hacker-Ninja 5% | Hacker-Scout 4% | Derelict-Tank Dominant Class ---------------- Mutant | -10/Materials Mutant | -10/Subcaves Derelict-Mutant | -9/Scraptown Mutant | -6/Factory Mutant | -6/Lower Caves Derelict-Gunner | -6/Lower Caves Derelict-Gunner | -6/Data Miner Derelict-Gunner | -5/Proximity Caves Derelict-Gunner | -5/Factory Scout | -4/Factory Scout | -4/Upper Caves Scout | -4/Upper Caves Hacker-Scout | -4/Zhirov Hacker-Scout | -3/Proximity Caves Hacker-Ninja | -3/Research Hacker-Scout | -3/Testing Resources | -11 -10 -10 -9 -6 -6 -6 -6 -5 -5 -4 -4 -4 -4 -3 -3 -3 ----------- Run | Yrd Mat Sub Scr Fac Low Low Dat Pro Fac Fac Upp Upp Zhi Pro Res Tes Matter Collected 2396 | 295 158 490 80 496 45 135 . 30 26 39 90 72 158 60 40 182 Remotely 105 | . . . . . . . . . . . 43 32 . 30 . . Salvage Created 3056 | 196 609 242 . 236 . 68 . 109 . 39 . . 321 348 181 707 Parts 124 | 15 47 8 . 15 . 4 . 8 . 3 . . . . 8 16 Haulers Intercepted . | . . . . . . . . . . . . . . . . . Recyclers Shooed 8 | . 5 . . . . . . . . . . . . . . 3 Parts Field Recycled . | . . . . . . . . . . . . . . . . . Retrieved Matter . | . . . . . . . . . . . . . . . . . Parts Self-Destructed 10 | . . . . . . 2 . 8 . . . . . . . . Prevented . | . . . . . . . . . . . . . . . . . Kills | -11 -10 -10 -9 -6 -6 -6 -6 -5 -5 -4 -4 -4 -4 -3 -3 -3 ------- Run | Yrd Mat Sub Scr Fac Low Low Dat Pro Fac Fac Upp Upp Zhi Pro Res Tes Combat Hostiles Destroyed 39 | . 12 7 . 7 . 3 . 4 . . . . . 1 1 4 Melee 3 | . . . . . . . . . . . . . . . 1 2 Guns 25 | . 12 4 . 2 . 3 . 4 . . . . . . . . Cannons 2 | . . . . 2 . . . . . . . . . . . . AOE 6 | . . 3 . 3 . . . . . . . . . . . . Classes Destroyed 13 | 3 4 1 . 2 . . . . . . . . . 1 . 2 Worker 8 | 2 1 . . 1 . . . . . 1 . . . . 1 2 Builder 8 | . 1 . . 1 . . . . . . . . . . 6 . Tunneler 5 | 3 . . . . . . . . . 2 . . . . . . Recycler 7 | 1 3 . . 1 . . . . . . . . . . . 2 Mechanic 1 | . . . . . . . . . . . . . . . . 1 Drone 1 | . . . . . . . . . . . . . . 1 . . Watcher 4 | . 2 . . . . . . . . . . . . . . 2 Swarmer 17 | . 6 . . 4 . 3 . 4 . . . . . . . . Grunt 6 | . 6 . . . . . . . . . . . . . . . Researcher 1 | . . . . . . . . . . . . . . . . 1 Hunter 2 | . . . . 2 . . . . . . . . . . . . Programmer 6 | . . . . 1 . . . . . . . . . . 1 4 Subdweller 7 | . . 7 . . . . . . . . . . . . . . Best Kill Streak 8 | 3 8 2 . 4 . 3 . 4 . 1 . . . 1 3 4 Combat Bots Only 4 | . 3 2 . 3 . 3 . 4 . . . . . 1 1 1 Max Kills in Single Turn 2 | 1 2 1 . 2 . 1 . 1 . 1 . . . 1 1 1 Gunslinging . | . . . . . . . . . . . . . . . . . Exploded 2 | . . 1 . 2 . . . . . . . . . . . . Melee 1 | . . . . . . . . . . . . . . . 1 1 Uniques/NPCs Destroyed . | . . . . . . . . . . . . . . . . . Combat | -11 -10 -10 -9 -6 -6 -6 -6 -5 -5 -4 -4 -4 -4 -3 -3 -3 -------- Run | Yrd Mat Sub Scr Fac Low Low Dat Pro Fac Fac Upp Upp Zhi Pro Res Tes Hostile Shots Fired 795 | . 53 58 . 245 12 34 . 52 46 6 . . . . 50 239 Missed 314 | . 13 17 . 116 6 9 . 20 13 5 . . . . 27 88 Hits 481 | . 40 41 . 129 6 25 . 32 33 1 . . . . 23 151 Projectile 481 | . 40 41 . 129 6 25 . 32 33 1 . . . . 23 151 Critical Strikes 15 | . . 2 . . . . . 1 1 . . . . . . 11 Part Disruptions 1 | . . . . . . . . . . . . . . . . 1 Damage Taken 9077 | . 514 949 . 2163 94 408 . 381 875 18 . . . . 590 3085 Core 2106 | . 43 135 . 435 41 60 . 18 41 . . . . . 108 1225 Absorbed by Shields . | . . . . . . . . . . . . . . . . . Redirected to Shielding 19 | . . . . 19 . . . . . . . . . . . . Core Remaining (%) 70 | 100 . . 28 . . . . 34 95 . . . . 93 . . Volleys Fired 214 | 15 76 60 . 35 . 10 . 5 2 . . . . . . 11 Largest 3 | 2 2 2 . 3 . 1 . 3 2 . . . . . . 1 Hottest 150 | 60 70 83 . 88 . 60 . 150 150 . . . . . . 88 Shots Fired 365 | 30 138 89 . 69 . 10 . 15 4 . . . . . . 10 Gun 293 | 30 138 54 . 32 . 10 . 15 4 . . . . . . 10 Cannon 39 | . . 11 . 28 . . . . . . . . . . . . Launcher 33 | . . 24 . 9 . . . . . . . . . . . . Special . | . . . . . . . . . . . . . . . . . Kinetic 180 | 15 63 41 . 56 . . . 5 . . . . . . . . Thermal 147 | 15 75 24 . 4 . 10 . 5 4 . . . . . . 10 Explosive 33 | . . 24 . 9 . . . . . . . . . . . . Electromagnetic 5 | . . . . . . . . 5 . . . . . . . . Robot Hit Streak 18 | 7 18 9 . 10 . 3 . 3 5 . . . . . . 7 Robot Miss Streak 5 | 2 5 1 . 2 . 3 . 3 . . . . . . . 1 Penetration Max . | . . . . . . . . . . . . . . . . . Secondary Targets 3 | . 1 . . . . . . 2 . . . . . . . . Max Gunslinging Chain 1 | . 1 . . . . . . 1 . . . . . . . . Shots Hit Robots 265 | 20 82 43 . 44 . 5 . 6 4 3 . . 5 5 12 36 Core Hits 99 | 9 34 16 . 20 . 3 . 6 . 1 . . 1 1 2 6 Critical Kills 2 | . . . . . . . . 1 . . . . . . . 1 Critical Parts Destroyed 11 | . . . . 1 . 1 . . . 1 . . . 1 1 6 Critical Strikes 24 | . 4 1 . 1 . 1 . 1 . 1 . . . 1 3 11 Burn 9 | . 4 1 . . . . . . . . . . . . . 4 Destroy 3 | . . . . 1 . 1 . 1 . . . . . . . . Smash 11 | . . . . . . . . . . 1 . . . 1 2 7 Impale 1 | . . . . . . . . . . . . . . . 1 . Melee Attacks 150 | . . . . . . . . 1 . 10 4 . 5 9 70 51 Impact 133 | . . . . . . . . 1 . 10 4 . 5 9 56 48 Slashing . | . . . . . . . . . . . . . . . . . Piercing 17 | . . . . . . . . . . . . . . . 14 3 Sneak Attacks 17 | . . . . . . . . . . 3 . . . . 8 6 Combat Hostiles 1 | . . . . . . . . . . . . . . . 1 . Follow-up Attacks 3 | . . . . . . . . . . . . . . . 2 1 Damage Inflicted 7958 | 196 928 879 . 1296 . 99 . 110 95 320 . . 468 427 1153 1987 Guns 2482 | 196 928 550 . 362 . 99 . 110 95 . . . . . . 142 Cannons 359 | . . . . 359 . . . . . . . . . . . . Explosions 904 | . . 329 . 575 . . . . . . . . . . . . Melee 4182 | . . . . . . . . . . 320 . . 468 427 1148 1819 Ramming 31 | . . . . . . . . . . . . . . . 5 26 Kinetic 1446 | 55 393 362 . 636 . . . . . . . . . . . . Thermal 1403 | 141 535 188 . 122 . 99 . 81 95 . . . . . . 142 Explosive 867 | . . 329 . 538 . . . . . . . . . . . . Electromagnetic 29 | . . . . . . . . 29 . . . . . . . . Impact 4140 | . . . . . . . . . . 320 . . 468 427 1106 1819 Slashing . | . . . . . . . . . . . . . . . . . Piercing 42 | . . . . . . . . . . . . . . . 42 . Highest Corruption 30 | . . . . 1 . . . 4 . . . . . . . 30 Average Corruption 7 | . . . . 1 . . . 4 . . . . . . . 14 Corruption Purged 4 | . . . . . . . . . . . . . . . . 4 Corruption Blocked . | . . . . . . . . . . . . . . . . . Effects 28 | . . . . 5 . . . . . . . . . . . 23 Message Errors 10 | . . . . 2 . . . . . . . . . . . 8 Matter Fused 8 | . . . . 1 . . . . . . . . . . . 7 Heat Flow Errors 1 | . . . . . . . . . . . . . . . . 1 Energy Discharges 3 | . . . . 1 . . . . . . . . . . . 2 Parts Rejected 2 | . . . . 1 . . . . . . . . . . . 1 Data Loss (major) 1 | . . . . . . . . . . . . . . . . 1 Misdirections 2 | . . . . . . . . . . . . . . . . 2 Weapon Failures 1 | . . . . . . . . . . . . . . . . 1 Overload Shots . | . . . . . . . . . . . . . . . . . Overflow Damage 2412 | . . . . 126 . . . . . 153 . . 326 330 622 855 Projectiles 10 | . . . . 10 . . . . . . . . . . . . Explosions 116 | . . . . 116 . . . . . . . . . . . . Melee 2286 | . . . . . . . . . . 153 . . 326 330 622 855 Knockbacks 21 | . . . . 3 . . . . . 1 . . . 2 . 15 Impact 17 | . . . . . . . . . . 1 . . . 2 . 14 Kinetic 3 | . . . . 3 . . . . . . . . . . . . Secondary 1 | . . . . . . . . . . . . . . . . 1 Self-Inflicted Damage 340 | . . 21 . 302 . . . . . . . . . . 2 15 Shots 9 | . . 3 . 6 . . . . . . . . . . . . Rammed 6 | . . . . . . . . . . . . . . . 1 5 Targets Rammed 6 | . . . . . . . . . . . . . . . 1 5 Kicked . | . . . . . . . . . . . . . . . . . Crushed . | . . . . . . . . . . . . . . . . . Highest Temperature 355 | 40 355 261 . 6 . 16 . 126 . . . . . . . 134 Average Temperature 108 | 21 134 154 . 3 . 9 . 67 . . . . . . . 82 Received Heat Transfer 1003 | . 96 418 . 312 . 39 . 30 54 9 . . . . 45 . Effects 3 | . 2 1 . . . . . . . . . . . . . . Shutdowns 1 | . 1 . . . . . . . . . . . . . . . Energy Bleed 1 | . 1 . . . . . . . . . . . . . . . Interference 1 | . . 1 . . . . . . . . . . . . . . Siege Activations . | . . . . . . . . . . . . . . . . . Martial Activations . | . . . . . . . . . . . . . . . . . Shielding Activations . | . . . . . . . . . . . . . . . . . Robots Disrupted . | . . . . . . . . . . . . . . . . . Combat Hostiles . | . . . . . . . . . . . . . . . . . Robots Corrupted 13 | . . . . . . . . . . 1 . . 1 3 2 6 Combat Hostiles 6 | . . . . . . . . . . . . . 1 3 . 2 Parts Fried 25 | . . . . . . . . . . 4 . . 1 2 9 9 Impact Corruptions 69 | . . . . . . . . . . 6 . . 11 10 13 29 Robots Melted . | . . . . . . . . . . . . . . . . . Combat Hostiles . | . . . . . . . . . . . . . . . . . Parts Melted 6 | . 2 1 . . . . . . . . . . . . . 3 Heat Transferred 4102 | 325 1875 629 . 150 . 125 . 100 148 . . . . . . 750 Parts Sabotaged . | . . . . . . . . . . . . . . . . . Parts Stolen . | . . . . . . . . . . . . . . . . . Parts Stripped . | . . . . . . . . . . . . . . . . . Power Chain Reactions . | . . . . . . . . . . . . . . . . . Alert | -11 -10 -10 -9 -6 -6 -6 -6 -5 -5 -4 -4 -4 -4 -3 -3 -3 ------- Run | Yrd Mat Sub Scr Fac Low Low Dat Pro Fac Fac Upp Upp Zhi Pro Res Tes Maximum Alert Level 1 | . . . . 1 . . . . . . . . . . 1 . Low Security (%) 83 | 100 100 . . 63 . . . . 100 100 . . . . 72 100 Level 1 16 | . . . . 36 . . . . . . . . . . 27 . Level 2 . | . . . . . . . . . . . . . . . . . Level 3 . | . . . . . . . . . . . . . . . . . Level 4 . | . . . . . . . . . . . . . . . . . Level 5 . | . . . . . . . . . . . . . . . . . High Security . | . . . . . . . . . . . . . . . . . Max Security . | . . . . . . . . . . . . . . . . . Peak Influence 386 | 5 122 . . 386 . . . . 177 24 . . . . 313 52 Initial 313 | . . . . . . . . . 150 . . . . . 313 . Average 79 | 2 40 . . 122 . . . . 63 6 . . . . 142 5 Influence Increases 2460 | 30 436 60 . 700 . 70 . 90 177 130 . . 10 75 429 253 Destroy 0b10 Robot/C 640 | . 240 . . 140 . 60 . 80 . . . . . . 20 100 Destroy 0b10 Robot/NC 190 | 30 35 . . 15 . . . . . 15 . . 10 15 35 35 Destroy Leader 138 | . 54 . . 40 . 10 . 10 . . . . . . 10 14 Successful Hack 134 | . 17 . . . . . . . 27 58 . . . . . 32 Disable Machine 165 | . . . . 135 . . . . . 15 . . . . . 15 Destroy Structure 143 | . . . . 55 . . . . . 12 . . . . 64 12 Advance Influence 450 | . . . . . . . . . 150 . . . . . 300 . Partial Spotted 135 | . 30 . . 45 . . . . . 30 . . . . . 30 Lose Combat Pursuer 465 | . 60 60 . 270 . . . . . . . . . 60 . 15 Influence Decreases 2460 | 30 425 71 . 343 283 144 . 90 177 123 7 . 10 55 449 253 Entered New Map 165 | . . 6 . . 133 15 . . . . 4 . . . 7 . Time Decay 1886 | 30 415 65 . 203 140 120 . 74 137 123 3 . 10 35 422 109 Lost Part 328 | . 10 . . 130 10 9 . 16 40 . . . . . 4 109 Lost Ally 56 | . . . . 10 . . . . . . . . . 20 16 10 Purge Threat 25 | . . . . . . . . . . . . . . . . 25 Squads Dispatched 26 | . 3 . . 7 . . . . 3 2 . . . . 6 5 Investigation 5 | . 2 . . . . . . . 1 1 . . . . 1 . Extermination 9 | . . . . 3 . . . . 1 1 . . . . 2 2 Reinforcement 12 | . 1 . . 4 . . . . 1 . . . . . 3 3 Assault . | . . . . . . . . . . . . . . . . . Garrison . | . . . . . . . . . . . . . . . . . Intercept . | . . . . . . . . . . . . . . . . . Searches Triggered . | . . . . . . . . . . . . . . . . . Construction Impeded 2 | . . . . 1 . . . . . . . . . . 1 . Haulers Reinforced . | . . . . . . . . . . . . . . . . . Active Scanning Responses . | . . . . . . . . . . . . . . . . . Cargo Convoy Interrupts . | . . . . . . . . . . . . . . . . . Stealth | -11 -10 -10 -9 -6 -6 -6 -6 -5 -5 -4 -4 -4 -4 -3 -3 -3 --------- Run | Yrd Mat Sub Scr Fac Low Low Dat Pro Fac Fac Upp Upp Zhi Pro Res Tes Distress Signals 7 | . 1 . . 4 . . . . 1 . . . . . . 1 Communications Jammed . | . . . . . . . . . . . . . . . . . Distress Signals . | . . . . . . . . . . . . . . . . . Times Spotted 150 | . 20 13 . 40 2 7 . 8 14 5 . . . 8 15 18 Peak Tracking Total 12 | . 4 2 . 10 2 4 . 4 8 4 . . . 5 12 8 Tactical Retreats 20 | . 2 2 . 8 . . . . 3 . . . . 2 2 1 Traps | -11 -10 -10 -9 -6 -6 -6 -6 -5 -5 -4 -4 -4 -4 -3 -3 -3 ------- Run | Yrd Mat Sub Scr Fac Low Low Dat Pro Fac Fac Upp Upp Zhi Pro Res Tes Traps Triggered 10 | . 3 1 . 4 . . . . 2 . . . . . . . Indirectly . | . . . . . . . . . . . . . . . . . Trap Hack Attempts . | . . . . . . . . . . . . . . . . . Triggered . | . . . . . . . . . . . . . . . . . Disarmed . | . . . . . . . . . . . . . . . . . Reprogrammed . | . . . . . . . . . . . . . . . . . Reused . | . . . . . . . . . . . . . . . . . Traps Extracted . | . . . . . . . . . . . . . . . . . Installed . | . . . . . . . . . . . . . . . . . Triggered . | . . . . . . . . . . . . . . . . . Machines | -11 -10 -10 -9 -6 -6 -6 -6 -5 -5 -4 -4 -4 -4 -3 -3 -3 ---------- Run | Yrd Mat Sub Scr Fac Low Low Dat Pro Fac Fac Upp Upp Zhi Pro Res Tes Machines Disabled 12 | . . 1 . 9 . . . . . 1 . . . . . 1 Max in Single Turn 9 | . . 1 . 9 . . . . . 1 . . . . . 1 Garrison Access 1 | . . . . . . . . . . 1 . . . . . . Machines Repaired . | . . . . . . . . . . . . . . . . . Machines Dismantled . | . . . . . . . . . . . . . . . . . Machines Sabotaged . | . . . . . . . . . . . . . . . . . Overloaded Fab Kills . | . . . . . . . . . . . . . . . . . Hacking | -11 -10 -10 -9 -6 -6 -6 -6 -5 -5 -4 -4 -4 -4 -3 -3 -3 --------- Run | Yrd Mat Sub Scr Fac Low Low Dat Pro Fac Fac Upp Upp Zhi Pro Res Tes Machines Accessed 49 | . 7 1 5 3 1 . 4 . 4 8 . 1 6 . 2 7 Terminals 25 | . 7 . . 3 1 . . . 2 5 . . . . 2 5 Fabricators 2 | . . . . . . . . . . 1 . . . . . 1 Repair Stations 1 | . . . . . . . . . . 1 . . . . . . Recycling Units 1 | . . . . . . . . . 1 . . . . . . . Scanalyzers . | . . . . . . . . . . . . . . . . . Garrison Access 3 | . . . . . . . . . 1 1 . . . . . 1 Total Hacks 147 | . 18 1 20 12 1 . 28 . 7 17 . 1 19 . 3 20 Successful 97 | . 4 1 20 4 1 . 28 . 3 6 . 1 19 . . 10 Failed 49 | . 13 . . 8 . . . . 4 11 . . . . 3 10 Catastrophic 21 | . 5 . . 4 . . . . 1 7 . . . . 3 1 Database Lockouts 1 | . 1 . . . . . . . . . . . . . . . Manual 50 | . 14 . . 11 . . . . 4 10 . . . . 3 8 Terminals 66 | . 18 . . 12 1 . . . 5 10 . . . . 3 17 Fabricators 4 | . . . . . . . . . . 3 . . . . . 1 Repair Stations 3 | . . . . . . . . . . 3 . . . . . . Recycling Units 1 | . . . . . . . . . 1 . . . . . . . Scanalyzers . | . . . . . . . . . . . . . . . . . Garrison Access 4 | . . . . . . . . . 1 1 . . . . . 2 Terminal Hacks 83 | . 3 1 20 2 1 . 28 . . 1 . 1 19 . . 7 Record 39 | . . . 16 . 1 . 11 . . 1 . 1 7 . . 2 Part Schematic 12 | . . . . . . . 8 . . . . . 4 . . . Robot Schematic 6 | . . . . . . . 6 . . . . . . . . . Robot Analysis 11 | . 2 . 4 1 . . . . . . . . 4 . . . Prototype ID Bank 8 | . 1 . . . . . 3 . . . . . 4 . . . Open Door 1 | . . . . . . . . . . . . . . . . 1 Branch Access Points 2 | . . . . 1 . . . . . . . . . . . 1 Alert Level 2 | . . . . . . . . . . . . . . . . 2 Unreport Threat 1 | . . . . . . . . . . . . . . . . 1 Proto ID Catalog 1 | . . 1 . . . . . . . . . . . . . . Fabricator Hacks 1 | . . . . . . . . . . 1 . . . . . . Network Status 1 | . . . . . . . . . . 1 . . . . . . Repair Station Hacks 1 | . . . . . . . . . . 1 . . . . . . Scan Component 1 | . . . . . . . . . . 1 . . . . . . Recycling Unit Hacks . | . . . . . . . . . . . . . . . . . Scanalyzer . | . . . . . . . . . . . . . . . . . Garrison Access Hacks 1 | . . . . . . . . . . 1 . . . . . . Seal Access 1 | . . . . . . . . . . 1 . . . . . . Unauthorized Hacks 11 | . 1 . . 2 . . . . 3 2 . . . . . 3 Terminals 8 | . 1 . . 2 . . . . 1 1 . . . . . 3 Assimilate 2 | . . . . . . . . . . . . . . . . 2 Botnet 1 | . . . . 1 . . . . . . . . . . . . Operators 5 | . 1 . . 1 . . . . 1 1 . . . . . 1 Fabricators 1 | . . . . . . . . . . 1 . . . . . . Fabnet 1 | . . . . . . . . . . 1 . . . . . . Repair Stations . | . . . . . . . . . . . . . . . . . Recycling Units 1 | . . . . . . . . . 1 . . . . . . . Fedlink 1 | . . . . . . . . . 1 . . . . . . . Scanalyzers . | . . . . . . . . . . . . . . . . . Garrison Access 1 | . . . . . . . . . 1 . . . . . . . Watchers 1 | . . . . . . . . . 1 . . . . . . . Data Cores Recovered . | . . . . . . . . . . . . . . . . . Used . | . . . . . . . . . . . . . . . . . Hacking Detections 28 | . 7 . . 3 . . . . 3 7 . . . . 2 6 Full Trace Events 2 | . . . . . . . . . . 1 . . . . 1 . Feedback Events . | . . . . . . . . . . . . . . . . . Feedback Blocked . | . . . . . . . . . . . . . . . . . Robot Schematics Acquired 7 | . . . . . . . 6 . . . . . . . . 1 Robots Built . | . . . . . . . . . . . . . . . . . Authchips . | . . . . . . . . . . . . . . . . . Time . | . . . . . . . . . . . . . . . . . Total Robot Build Rating . | . . . . . . . . . . . . . . . . . Part Schematics Acquired 13 | . . . . . . . 8 . . . . . 4 . . 1 Parts Built . | . . . . . . . . . . . . . . . . . Authchips . | . . . . . . . . . . . . . . . . . Time . | . . . . . . . . . . . . . . . . . Total Part Build Rating . | . . . . . . . . . . . . . . . . . Parts Repaired . | . . . . . . . . . . . . . . . . . Time . | . . . . . . . . . . . . . . . . . Parts Recycled . | . . . . . . . . . . . . . . . . . Recycled Matter . | . . . . . . . . . . . . . . . . . Retrieved Matter . | . . . . . . . . . . . . . . . . . Retrieved Components . | . . . . . . . . . . . . . . . . . Parts Scanalyzed . | . . . . . . . . . . . . . . . . . Part Schematics Acquired . | . . . . . . . . . . . . . . . . . Parts Damaged . | . . . . . . . . . . . . . . . . . Bothacking | -11 -10 -10 -9 -6 -6 -6 -6 -5 -5 -4 -4 -4 -4 -3 -3 -3 ------------ Run | Yrd Mat Sub Scr Fac Low Low Dat Pro Fac Fac Upp Upp Zhi Pro Res Tes Used RIF Installer . | . . . . . . . . . . . . . . . . . Robots Hacked 1 | . . . . . . . . . . . . . . . 1 . Non-combat . | . . . . . . . . . . . . . . . . . Combat 1 | . . . . . . . . . . . . . . . 1 . Robot Hacks Applied . | . . . . . . . . . . . . . . . . . Relay Couplers Released . | . . . . . . . . . . . . . . . . . Fabnet Peak Effective % 3 | . . . . . . . . . . . . . . 3 3 3 Autooverrided 1 | . . . . . . . . . . . . . . . 1 . Robots Rewired . | . . . . . . . . . . . . . . . . . Allies Hacked 1 | . . . . . . . . . . . . . . . . 1 Hacks Repelled . | . . . . . . . . . . . . . . . . . Allies | -11 -10 -10 -9 -6 -6 -6 -6 -5 -5 -4 -4 -4 -4 -3 -3 -3 -------- Run | Yrd Mat Sub Scr Fac Low Low Dat Pro Fac Fac Upp Upp Zhi Pro Res Tes Total Allies 2 | . . . . . . . . . . . . . . . 1 1 Largest Group 1 | . . . . . . . . . . . . . . . 1 1 Highest-Rated Group 47 | . . . . . . . . . . . . . . . 47 26 Highest-Rated Ally 47 | . . . . . . . . . . . . . . . 47 26 Total Orders 10 | . . . . 5 . . . . 2 . . . . 3 . . STAY 2 | . . . . 2 . . . . . . . . . . . . FOLLOW 1 | . . . . 1 . . . . . . . . . . . . EXPLORE 4 | . . . . . . . . . 1 . . . . 3 . . RETURN 3 | . . . . 2 . . . . 1 . . . . . . . Ally Attacks 2 | . . . . . . . . . . . . . . . 2 . Total Damage 76 | . . . . . . . . . . . . . . . 76 . Kills . | . . . . . . . . . . . . . . . . . Allies Corrupted . | . . . . . . . . . . . . . . . . . Allies Melted . | . . . . . . . . . . . . . . . . . Intel | -11 -10 -10 -9 -6 -6 -6 -6 -5 -5 -4 -4 -4 -4 -3 -3 -3 ------- Run | Yrd Mat Sub Scr Fac Low Low Dat Pro Fac Fac Upp Upp Zhi Pro Res Tes Active Infowar (turns) 4947 | 92 164 . . 238 286 500 114 524 458 385 135 122 119 226 1055 529 Optics 4450 | . . . . . 286 500 114 524 458 385 135 122 119 223 1055 529 Sensors 2291 | . . . . . . . . . . 371 135 122 119 226 1046 272 Terrain 238 | . . . . 238 . . . . . . . . . . . . Seismic 256 | 92 164 . . . . . . . . . . . . . . . ECM 1110 | . . . . . . . . . 140 68 . . . . 902 . Robot Analysis Total 11 | . 2 . 4 1 . . . . . . . . 4 . . . Derelict Logs Recovered 8 | . . 2 2 . 2 . . 1 . . . 1 . . . . Drone Launches 8 | . . . . 3 . . . . 2 . . . . 3 . . Drone Recoveries 3 | . . . . 2 . . . . 1 . . . . . . . Exploration | -11 -10 -10 -9 -6 -6 -6 -6 -5 -5 -4 -4 -4 -4 -3 -3 -3 ------------- Run | Yrd Mat Sub Scr Fac Low Low Dat Pro Fac Fac Upp Upp Zhi Pro Res Tes Turns Passed 12301 | 164 1200 1671 3199 1614 286 500 114 524 458 385 135 122 119 226 1055 529 Spaces Moved 11768 | 114 826 1013 1939 1420 609 458 100 434 626 960 449 433 311 545 756 775 Core 213 | 12 . 3 . 108 8 . . . . . . . . . . 82 Treads 2886 | . . 569 1939 378 . . . . . . . . . . . . Legs 34 | . . 22 . 6 . . . . . . . . . . . 6 Wheels 2414 | 102 826 419 . . . 301 100 434 232 . . . . . . . Hover 232 | . . . . . 38 157 . . . 4 . . . . . 33 Flight 5989 | . . . . 928 563 . . . 394 956 449 433 311 545 756 654 Fastest Speed 23 | 50 80 95 160 44 45 70 115 115 34 27 27 27 27 24 24 23 Average Speed 80 | 87 92 136 160 78 46 98 115 115 62 32 27 27 28 26 24 34 Slowest Speed 300 | 150 110 300 160 260 70 115 115 115 115 112 27 27 30 30 29 110 Overloaded Moves 19 | . . . . . . . . . . . . . . . . 19 Propulsion Burnouts . | . . . . . . . . . . . . . . . . . Robots Hopped 30 | . . . . 8 1 . . . 12 . . . . . 5 4 Potential Cave-ins 17 | . . . . 1 . . . . . . . . . . 16 . Cave-ins Triggered . | . . . . . . . . . . . . . . . . . Teleports 1 | . . . . . . . . . . . . . 1 . . . Exploration Rate (%) 56 | 6 99 36 94 31 79 66 79 83 21 14 61 57 64 82 11 70 Regions Visited 16 Branch Regions 11 Pre-discovered Areas 6 | . . 1 . . 1 . 1 . . . . . 3 . . . Known Exits Taken 7 | . . . . 1 . . . . . 1 1 1 1 1 1 . Unknown Exits Taken 9 | 1 1 1 1 . 1 1 1 1 1 . . . . . . . Scrap Searched 22 | . . 8 5 . 2 3 . 1 . . 2 . . 1 . . Spaces Dug 68 | . . 9 . . . . . 1 . 6 4 . . 4 38 6 Terrain Destroyed 252 | . . 135 . 58 . . . 1 . 6 4 . . 4 38 6 Melee 59 | . . . . . . . . 1 . 6 4 . . 4 38 6 Projectile 3 | . . 3 . . . . . . . . . . . . . . AOE 190 | . . 132 . 58 . . . . . . . . . . . . Terrain Rammed 1 | . . . . . . . . . . . . . . . . 1 Walls Destroyed . | . . . . . . . . . . . . . . . . . Machines Disabled . | . . . . . . . . . . . . . . . . . Actions | -11 -10 -10 -9 -6 -6 -6 -6 -5 -5 -4 -4 -4 -4 -3 -3 -3 --------- Run | Yrd Mat Sub Scr Fac Low Low Dat Pro Fac Fac Upp Upp Zhi Pro Res Tes Total 14002 | 149 1136 1212 2038 1845 609 496 99 446 674 1014 455 437 334 608 1519 931 Wait 1623 | . 201 103 85 361 2 4 . 5 18 21 2 3 3 44 714 57 Move 11694 | 113 825 1012 1938 1404 606 457 99 433 602 959 448 432 310 544 745 767 Hop 28 | . . . . 7 1 . . . 11 . . . . . 5 4 Pick Up 53 | 11 11 11 3 1 . 3 . 1 4 2 1 . 1 . 1 3 Fast Attach 104 | 6 3 6 2 21 . 10 . . 15 9 . 1 6 6 3 16 Attach 39 | 2 5 5 . 5 . 3 . 1 4 3 . . 1 . . 10 Detach 23 | . . 1 . 4 . 3 . . 2 5 . 1 3 . . 4 Swap 12 | . 1 4 3 . . 1 . . 2 . . . . . 1 . Drop 79 | 2 14 10 6 7 . 5 . . 14 5 . . 5 4 1 6 Fire 214 | 15 76 60 . 35 . 10 . 5 2 . . . . . . 11 Melee 120 | . . . . . . . . 1 . 10 4 . 5 9 48 43 Ram 7 | . . . . . . . . . . . . . . . . 7 Kick . | . . . . . . . . . . . . . . . . . Crush . | . . . . . . . . . . . . . . . . . Escape Stasis 2 | . . . . . . . . . . . . . . . 1 1 Rewire 3 | . . . 1 . . . . . . . . . . . . 2 Trap . | . . . . . . . . . . . . . . . . . Miscellaneous 1 | . . . . . . . . . . . . . . 1 . . Route ------- -11/Scrapyard -10/Materials (discovered 6 exits: [*Mat x3] / [*Min x2] / *Sub) -10/Subcaves (discovered 2 exits: [*Mat] / *Scr) -9/Scraptown (discovered 2 exits: *Fac x2) -6/Factory (discovered 2 exits: *Low x2) -6/Lower Caves -6/Lower Caves (discovered 2 exits: *Fac / *Dat) -6/Data Miner -5/Proximity Caves -5/Factory -4/Factory -4/Upper Caves -4/Upper Caves -4/Zhirov -3/Proximity Caves -3/Research (discovered 2 exits: *Res / *Tes) -3/Testing (discovered 1 exit: *Res) History --------- Turn | Location | Event 29 | -11/Scrapyard | Discovered new exit (range 16) 165 | -11/Scrapyard | Entered Materials 301 | -10/Materials | Discovered new exit (range 9) 354 | -10/Materials | Build established: Mutant 920 | -10/Materials | Discovered new exit (range 6) 1006 | -10/Materials | Discovered new exit (range 16) 1067 | -10/Materials | Discovered new exit (range 14) 1199 | -10/Materials | Central database locked down 1262 | -10/Materials | Discovered new exit (range 5) 1322 | -10/Materials | Discovered new exit (range 8) 1365 | -10/Materials | Entered Subcaves 1366 | -10/Subcaves | Approached by a straggling Scientist 1373 | -10/Subcaves | Learned location of Zion (-7) 1424 | -10/Subcaves | Discovered new exit (range 11) 1479 | -10/Subcaves | Disturbed a concealed Subdweller 1670 | -10/Subcaves | Ambushed by Subdweller buried in earth 1878 | -10/Subcaves | Core integrity fell below 50% 1907 | -10/Subcaves | Lost 6 parts (3n3w) 2000 | -10/Subcaves | Ambushed by Subdweller buried in earth 2202 | -10/Subcaves | Ambushed by Subdweller buried in earth 2523 | -10/Subcaves | Visited 4L-MR0's lab 2557 | -10/Subcaves | Found Power Bank 2941 | -10/Subcaves | Learned 4 Materials zone layouts 2988 | -10/Subcaves | Scientist uncovered a shortcut to Scraptown 3036 | -10/Subcaves | Entered Scraptown 3391 | -9/Scraptown | Build established: Derelict-Mutant 3957 | -9/Scraptown | Scanned Subdweller tech in exchange for log data 3962 | -9/Scraptown | Learned Factory security intel 3964 | -9/Scraptown | Learned Factory terminal intel 4004 | -9/Scraptown | Discovered new exit (range 3) 4145 | -9/Scraptown | Visited Spacefarers 4230 | -9/Scraptown | Visited IN-MT5's Study 4358 | -9/Scraptown | Visited Shadow of the Wyrm 4450 | -9/Scraptown | Visited Awakened 4506 | -9/Scraptown | Visited TADAMA 4557 | -9/Scraptown | Visited Cave Peace 4648 | -9/Scraptown | Visited Fellowship of the Rings 4736 | -9/Scraptown | Visited UFD Registry 4739 | -9/Scraptown | Registered with UFD as "Shortsink" 4806 | -9/Scraptown | Visited Cartography Club 4855 | -9/Scraptown | Found Surveybot 17 Chip 5061 | -9/Scraptown | Visited Junk Cannon Lab 5118 | -9/Scraptown | Visited Abandonware Association 5142 | -9/Scraptown | Learned abandonware demo "MELTYB.EXE" 5197 | -9/Scraptown | Visited Observation Area 5262 | -9/Scraptown | Visited Botcube Research 5334 | -9/Scraptown | Visited Scrap Suit Storage 5377 | -9/Scraptown | Visited Analyses Database 5665 | -9/Scraptown | Visited Scrapoid Pod Storage 5701 | -9/Scraptown | Visited DA-N13 Charitable Foundation 5715 | -9/Scraptown | Found DCF Scrap (30 items) 5817 | -9/Scraptown | Visited Scrapoid Research Area 6042 | -9/Scraptown | Discovered new exit (range 5) 6235 | -9/Scraptown | Entered Factory 6235 | -6/Factory | Evolved 8 slots: Propulsion x2, Utility x5, Weapon x1 6237 | -6/Factory | Loaded intel: 26 terminal locations 6806 | -6/Factory | Build established: Derelict-Tank 7264 | -6/Factory | Lost 6 parts (1p1n1u3w) 7349 | -6/Factory | Spotted B-75 Beast 7572 | -6/Factory | Build established: Mutant 7686 | -6/Factory | Allied Derelicts emerged from ambush trap array 7692 | -6/Factory | Lost 3 parts (1n1u1w) 7782 | -6/Factory | Identified exit to Lower Caves 7820 | -6/Factory | Core integrity fell below 50% 7849 | -6/Factory | Entered Lower Caves 7852 | -6/Lower Caves | Learned 8 Factory zone layouts 8043 | -6/Lower Caves | Encountered a Warlord checkpoint 8043 | -6/Lower Caves | Discovered new exit (range 15) 8121 | -6/Lower Caves | P-60 Hacker assimilated allied HI-6MK(M) 8135 | -6/Lower Caves | Entered another Lower Caves area 8157 | -6/Lower Caves | Discovered new exit (range 11) 8269 | -6/Lower Caves | Found DCF Scrap (13 items) 8298 | -6/Lower Caves | Attached Power Bank, gained temporary slots: Power x3 8529 | -6/Lower Caves | Build established: Derelict-Gunner 8602 | -6/Lower Caves | Discovered new exit (range 21) 8635 | -6/Lower Caves | Entered Data Miner 8635 | -6/Data Miner | Discovered new exit (range 6) 8650 | -6/Data Miner | Met Data Miner 8710 | -6/Data Miner | Learned location of Section 7 (-2) 8710 | -6/Data Miner | Acquired the access code to Warlord's prototype stash 8721 | -6/Data Miner | Received God Mode back door access code from Data Miner 8749 | -6/Data Miner | Entered Proximity Caves 9151 | -5/Proximity Caves | Spotted B-75 Beast 9170 | -5/Proximity Caves | Spotter reported a threat 9192 | -5/Proximity Caves | Attracted the attention of an 0b10 checkpoint 9262 | -5/Proximity Caves | Discovered new exit (range 5) 9273 | -5/Proximity Caves | Entered Factory 9273 | -5/Factory | Evolved 2 slots: Propulsion x1, Utility x1 9505 | -5/Factory | Loaded intel: 8 recycling unit locations 9591 | -5/Factory | Lost 4 parts (1u3w) 9716 | -5/Factory | Discovered new exit (range 22) 9731 | -5/Factory | Entered another Factory area 9731 | -4/Factory | Evolved 2 slots: Propulsion x1, Utility x1 9844 | -4/Factory | Discovered new exit (range 18) 9948 | -4/Factory | Identified exit to Upper Caves 10116 | -4/Factory | Entered Upper Caves 10183 | -4/Upper Caves | Spotted B-86 Titan 10220 | -4/Upper Caves | Discovered new exit (range 9) 10223 | -4/Upper Caves | Identified exit to Upper Caves 10251 | -4/Upper Caves | Entered another Upper Caves area 10258 | -4/Upper Caves | Build established: Scout 10344 | -4/Upper Caves | Learned Research terminal intel 10362 | -4/Upper Caves | Discovered new exit (range 4) 10363 | -4/Upper Caves | Identified exit to Zhirov 10373 | -4/Upper Caves | Entered Zhirov 10373 | -4/Zhirov | Discovered new exit (range 3) 10384 | -4/Zhirov | Met Zhirov 10399 | -4/Zhirov | Learned location of Quarantine (-2) 10399 | -4/Zhirov | Learned location of Testing (-3) 10399 | -4/Zhirov | Learned location of Command (-1) 10403 | -4/Zhirov | Zhirov requested help retrieving the SGEMP Prototype 10411 | -4/Zhirov | Found Alien Artifact 10411 | -4/Zhirov | Identified Integrated Dissipator 10411 | -4/Zhirov | Installed Integrated Dissipator, increased core heat dissipation (+20) 10416 | -4/Zhirov | Found Alien Artifact 10416 | -4/Zhirov | Identified Transdimensional Reconstructor 10416 | -4/Zhirov | Warped through subspace 10492 | -4/Zhirov | Identified exit to Proximity Caves 10492 | -4/Zhirov | Entered Proximity Caves 10523 | -3/Proximity Caves | Spotted B-86 Titan 10576 | -3/Proximity Caves | Spotter reported a threat 10610 | -3/Proximity Caves | Found Prototype Device 10610 | -3/Proximity Caves | Identified Exp. Terrain Scanner 10634 | -3/Proximity Caves | Build established: Hacker-Scout 10652 | -3/Proximity Caves | Spotter reported a threat 10716 | -3/Proximity Caves | Discovered new exit (range 6) 10718 | -3/Proximity Caves | Identified exit to Research 10718 | -3/Proximity Caves | Entered Research 10718 | -3/Research | Evolved 2 slots: Propulsion x1, Utility x1 10719 | -3/Research | Loaded intel: 18 terminal locations 11038 | -3/Research | Build established: Hacker-Ninja 11763 | -3/Research | Discovered new exit (range 5) 11764 | -3/Research | Discovered new exit (range 7) 11765 | -3/Research | Identified exit to Testing 11773 | -3/Research | Entered Testing 11786 | -3/Testing | Spotted PL-K16517JGMP 11802 | -3/Testing | Lost 6 parts (4n2u) 11963 | -3/Testing | System corruption reached 10% 12000 | -3/Testing | Lost 5 parts (1p2n1u1w) 12080 | -3/Testing | Lost 3 parts (1p2u) 12192 | -3/Testing | Found Prototype Device 12192 | -3/Testing | Identified 2N-1CE's Frost Array 12212 | -3/Testing | Scanned by Researcher 12246 | -3/Testing | Discovered new exit (range 22) 12265 | -3/Testing | Identified exit to Research 12268 | -3/Testing | Core integrity fell below 50% 12297 | -3/Testing | System corruption reached 30% 12299 | -3/Testing | Core integrity fell below 20% 12302 | -3/Testing | Core destroyed Last Messages --------------- 12291_ Slug penetrates P-80 Master. 12291_ Slug penetrates Machine. 12291_ Slug penetrates Reinforced Barrier. 12292_ Sml. Battery destroyed. 12293_ Adv. Plasma Rifle destroyed. 12294_ System corrupted: Matter fused (-8). 12294_ Slug penetrates Reinforced Barrier. 12294_ Regeneration Lab disabled. 12295_ Slammed into P-80 Master. 12296_ P-80 Master resets P-80 Master, system corruption cleaned. 12299_ Penetrated by Slug. 12299_ Slug penetrates Reinforced Shell. 12300_ P-80 Master resets P-80 Master, system corruption cleaned. 12301_ Slug penetrates Reinforced Barrier. 12301_ System Shield destroyed. 12301_ Slug penetrates Reinforced Barrier. 12302_ Slammed into Reinforced Shell. 12302_ Destabilizing: Core damaged (-52). Map ----- +----------------------------------------------------+ | T + """ """ #?????????????????? | | # """ """ #?????????????????? | | ############### # """ """ #?????????????????? | | ########???????## ## #?????????????????? | | """T"""#####????# ############?????????????????? | | #????# #????????????????????????????? | | """"" ! ###### #????????????????????????????? | | """"" + #????????????????????????????? | | """"" #######+######????????????????????????? | | # #????????????????????????? | | """"" # #????????????????????????? | | """"" # #????????????????????????? | | """"" % # """ """ #????????????????????????? | | # """S""" #????????????????????????? | | ##############????????????????????????? | | =[ #????# #???????????????????????????? | | % % #????# #???????????????????????????? | | #####+######????# < #???????????????????????????? | | % %########## #???????????????????????????? | | % % !%= #???????????????????????????? | | |=* #???????????????????????????? | | % ########## #???????????????????????????? | | ### # ! # #???????????????????????????? | | # # # #???????????????????????????? | | # # # #?#"""##????????????????????? | | # # ] # #?# @ "#????????????????????? | | %+ # # #?## pp#????????????????????? | | # / # ###h #????????????????????? | | # # # pp T#????????????????????? | | # # # h #????????????????????? | | # # # ########????????????????????? | | ### ######/### #???????????????????????????? | | % +???????????????????????????? | | #???????????????????????????? | | #???????????????????????????? | | #???????????????????????????? | | #############+### #???????????????????????????? | | #?????????? #?# #???????????????????????????? | | #???????? ""#?# #???????????????????????????? | | #??????#" """#?# ######??????????????????????? | | #??????##"" ""#?# #""""#??????????????????????? | | #?????????" ""#?# #""F"#?#############????????? | | #?????????#"""#?# #"" ### #????????? | | #?????????#####?# ^ / #????????? | | #???????????????# ^ #$ ?????????? | | #???????????????# ""G"" #$$ "????????????? | | ????????????????# " " #% "????????????? | | ????????????????# " " |#! """ #????????? | | ################# !=+%! #????????? | | ! [#= " #????????? | +----------------------------------------------------+ Best States ------------- Heat Dissipation 166 Energy Generation 27 Energy Capacity 415 Matter Stores 300 Matter Capacity 300 Sight Range 22 Robot Scan Range 15 Terrain Scan Range 14 Terrain Scan Density 1410 ECM Strength 1 Corruption Containment 8 Armor Coverage 225 Core Shielding 30 Evasion (%) 77 Target Analysis 8 Core Analysis 6 Recoil Reduction 2 Offensive Hacking 25 Defensive Hacking 20 Item Schematics ----------------- Combat Drone Bay | -6/Data Miner | Free Lgt. Regenerative Plating | -6/Data Miner | Free Cld. Nuclear Pulse Thruster | -6/Data Miner | Free Prc. Energy Filter | -6/Data Miner | Free Thunder Hammer | -6/Data Miner | Free Hvy. Siege Treads | -6/Data Miner | Free Adv. Coolant Injector | -6/Data Miner | Free Force Lance | -6/Data Miner | Free Assault Drone Bay | -4/Zhirov | Free Exp. Heat Sink | -4/Zhirov | Free Exp. Optical Array | -4/Zhirov | Free Imp. Arc Thrower | -4/Zhirov | Free Particle Accelerator | -3/Testing | Archive Robot Schematics ------------------ X-72 Disruptor | -6/Data Miner | Free X-67 Chaingunner | -6/Data Miner | Free L-41 Fighter | -6/Data Miner | Free B-48 Gladiator | -6/Data Miner | Free G-50 Soldier | -6/Data Miner | Free R-10 Processor | -6/Data Miner | Free X-82 Rainmaker | -3/Testing | Archive Fabricated ------------ Nothing Repaired ---------- Nothing Alien Tech Used ----------------- Integrated Dissipator Transdimensional Reconstructor Achievements -------------- None Challenges ------------ None Game ------ Seed XenonThermoelectricArray Manual? 0 Play Time 02:05:35 Cumulative 228.3 hours Start 2025.06.21 @ 16:42:10 End 2025.06.22 @ 18:03:28 Sessions 5 Manual Loads 0 Difficulty Rogue Special Mode None Game No. 219 Rogue 219 Adventurer 0 Explorer 0 Win Type - Total 1 Types 1/0/0/0/0/0/0/0/0/0 Lore% 58 Gallery% 60 Achievement% 47 Wizard Run 0 Options --------- Layout 2 ASCII 1 Keyboard 1 Movement Numpad Keybinds 0 Fullscreen 2 Font 32/TamsynBold Map View 50x44 Zoom Use 1% Tactical HUD 1 Map Filters NONE Filters NONE Steam 1 RUN: 6cddee1c-c411-4518-b610-e4bcf44e912f